fUST/lending_fUST_20250901
["ID","MTS","AMOUNT","RATE_DAILY","PERIOD"]
[382595255,1756675844598,-384.98239641,0.00016781,2]
[382595256,1756675844608,-480.0,0.00016824,2]
[382595257,1756675844618,-480.0,0.00016824,2]
[382595258,1756675844628,-480.0,0.00016824,2]
[382595259,1756675844638,-480.0,0.00016824,2]
[382595260,1756675844650,-480.0,0.00016824,2]
[382595261,1756675844659,-480.0,0.00016824,2]
[382595262,1756675844669,-731.65,0.00016824,2]
[382595263,1756675844679,-728.1,0.00016824,2]
[382595264,1756675844688,-913.54,0.00016824,2]
[382595265,1756675844698,-536.58,0.00016824,2]
[382595267,1756675844708,-773.23,0.00016824,2]
[382595269,1756675844719,-480.0,0.00016824,2]
[382595270,1756675844729,-480.0,0.00016824,2]
[382595271,1756675844739,-480.0,0.00016824,2]
[382595272,1756675844748,-480.0,0.00016824,2]
[382595274,1756675844758,-480.0,0.00016824,2]
[382595276,1756675844767,-480.0,0.00016824,2]
[382595277,1756675844777,-480.0,0.00016824,2]
[382595278,1756675844787,-480.0,0.00016824,2]
[382595279,1756675844796,-480.0,0.00016824,2]
[382595280,1756675844806,-480.0,0.00016824,2]
[382595281,1756675844815,-300.0,0.00016836,2]
[382595282,1756675844825,-300.0,0.00016836,2]
[382595283,1756675844835,-300.0,0.00016836,2]
[382595284,1756675844844,-300.0,0.00016836,2]
[382595285,1756675844854,-300.0,0.00016836,2]
[382595286,1756675844864,-300.0,0.00016836,2]
[382595287,1756675844874,-300.0,0.00016836,2]
[382595288,1756675844883,-300.0,0.00016836,2]
[382595289,1756675844893,-300.0,0.00016836,2]
[382595290,1756675844903,-300.0,0.00016836,2]
[382595292,1756675844912,-300.0,0.00016836,2]
[382595293,1756675844922,-300.0,0.00016836,2]
[382595294,1756675844931,-300.0,0.00016836,2]
[382595295,1756675844940,-300.0,0.00016836,2]
[382595296,1756675844955,-300.0,0.00016836,2]
[382595297,1756675844965,-600.0,0.00016836,2]
[382595298,1756675844974,-172.91525719,0.00016969,2]
[382595299,1756675844984,-1000.0,0.00016997,2]
[382595300,1756675844994,-433.43188615,0.00017,2]
[382595301,1756675845003,-480.0,0.00017051,2]
[382595302,1756675845013,-480.0,0.00017051,2]
[382595303,1756675845023,-722.63,0.00017052,2]
[382595304,1756675845032,-480.0,0.00017052,2]
[382595305,1756675845042,-480.0,0.00017052,2]
[382595306,1756675845051,-480.0,0.00017052,2]
[382595307,1756675845062,-480.0,0.00017052,2]
[382595308,1756675845072,-480.0,0.00017052,2]
[382595309,1756675845081,-1344.28,0.00017052,2]
[382595310,1756675845090,-480.0,0.00017052,2]
[382595311,1756675845100,-480.0,0.00017052,2]
[382595312,1756675845110,-721.82,0.00017052,2]
[382595313,1756675845119,-1160.18,0.00017052,2]
[382595314,1756675845129,-480.0,0.00017052,2]
[382595315,1756675845138,-480.0,0.00017052,2]
[382595316,1756675845148,-480.0,0.00017052,2]
[382595317,1756675845157,-1069.26,0.00017052,2]
[382595318,1756675845167,-495.79,0.00017052,2]
[382595319,1756675845177,-480.0,0.00017052,2]
[382595320,1756675845187,-480.0,0.00017052,2]
[382595321,1756675845196,-480.0,0.00017052,2]
[382595322,1756675845206,-677.17,0.00017052,2]
[382595323,1756675845216,-668.84,0.00017052,2]
[382595324,1756675845226,-500.0,0.00017052,2]
[382595325,1756675845237,-614.86,0.00017053,2]
[382595326,1756675845247,-480.0,0.00017053,2]
[382595327,1756675845256,-480.0,0.00017053,2]
[382595328,1756675845266,-480.0,0.00017053,2]
[382595329,1756675845276,-480.0,0.00017053,2]
[382595330,1756675845288,-480.0,0.00017053,2]
[382595331,1756675845299,-480.0,0.00017053,2]
[382595332,1756675845309,-480.0,0.00017053,2]
[382595333,1756675845319,-480.0,0.00017053,2]
[382595334,1756675845328,-480.0,0.00017053,2]
[382595335,1756675845339,-480.0,0.00017053,2]
[382595336,1756675845348,-480.0,0.00017053,2]
[382595337,1756675845358,-480.0,0.00017053,2]
[382595338,1756675845367,-480.0,0.00017053,2]
[382595339,1756675845377,-942.49,0.00017053,2]
[382595340,1756675845387,-549.24,0.00017053,2]
[382595341,1756675845397,-480.0,0.00017053,2]
[382595342,1756675845406,-499.82,0.00017053,2]
[382595343,1756675845416,-646.4,0.00017053,2]
[382595344,1756675845426,-663.12,0.00017053,2]
[382595345,1756675845436,-533.25,0.00017053,2]
[382595346,1756675845446,-361.12958997,0.00017053,2]
[382595347,1756675845456,-480.0,0.00017053,2]
[382595348,1756675845466,-480.0,0.00017053,2]
[382595349,1756675845476,-480.0,0.00017053,2]
[382595350,1756675845486,-480.0,0.00017053,2]
[382595351,1756675845495,-279.98960685,0.00017053,2]
[382595352,1756675845505,-480.0,0.00017053,2]
[382595353,1756675845515,-480.0,0.00017053,2]
[382595354,1756675845525,-480.0,0.00017053,2]
[382595355,1756675845535,-854.56,0.00017053,2]
[382595356,1756675845544,-508.2,0.00017053,2]
[382595357,1756675845554,-480.0,0.00017053,2]
[382595358,1756675845563,-665.21,0.00017053,2]
[382595359,1756675845574,-480.0,0.00017053,2]
[382595360,1756675845584,-480.0,0.00017053,2]
[382595361,1756675845595,-480.0,0.00017053,2]
[382595362,1756675845604,-480.0,0.00017053,2]
[382595363,1756675845614,-480.0,0.00017053,2]
[382595364,1756675845623,-575.28,0.00017053,2]
[382595365,1756675845633,-480.0,0.00017053,2]
[382595366,1756675845642,-480.0,0.00017053,2]
[382595367,1756675845652,-572.52,0.00017053,2]
[382595368,1756675845662,-480.0,0.00017053,2]
[382595369,1756675845672,-480.0,0.00017053,2]
[382595370,1756675845682,-480.0,0.00017053,2]
[382595371,1756675845691,-480.0,0.00017053,2]
[382595372,1756675845702,-480.0,0.00017053,2]
[382595373,1756675845712,-617.6,0.00017053,2]
[382595374,1756675845721,-637.0,0.00017053,2]
[382595375,1756675845731,-712.38,0.00017053,2]
[382595376,1756675845741,-480.0,0.00017053,2]
[382595377,1756675845751,-4115.77,0.00017053,2]
[382595378,1756675845761,-480.0,0.00017053,2]
[382595379,1756675845770,-614.41,0.00017053,2]
[382595380,1756675845780,-3097.79,0.00017053,2]
[382595381,1756675845790,-582.88,0.00017053,2]
[382595382,1756675845800,-480.0,0.00017053,2]
[382595383,1756675845810,-480.0,0.00017053,2]
[382595384,1756675845819,-480.0,0.00017053,2]
[382595385,1756675845829,-480.0,0.00017053,2]
[382595386,1756675845839,-810.06,0.00017053,2]
[382595387,1756675845848,-655.66,0.00017053,2]
[382595388,1756675845858,-1499.22,0.00017053,2]
[382595389,1756675845868,-625.4,0.00017053,2]
[382595391,1756675845878,-480.0,0.00017053,2]
[382595393,1756675845888,-697.17,0.00017053,2]
[382595395,1756675845897,-480.0,0.00017053,2]
[382595397,1756675845907,-480.0,0.00017053,2]
[382595399,1756675845917,-662.67,0.00017053,2]
[382595401,1756675845927,-990.81,0.00017053,2]
[382595403,1756675845937,-2638.18,0.00017053,2]
[382595405,1756675845951,-586.77,0.00017053,2]
[382595407,1756675845960,-480.0,0.00017053,2]
[382595408,1756675845970,-480.0,0.00017053,2]
[382595410,1756675845979,-480.0,0.00017053,2]
[382595412,1756675845990,-480.0,0.00017053,2]
[382595414,1756675846000,-3490.32,0.00017053,2]
[382595416,1756675846010,-1188.84,0.00017053,2]
[382595418,1756675846019,-487.97,0.00017053,2]
[382595420,1756675846029,-480.0,0.00017053,2]
[382595422,1756675846039,-480.0,0.00017053,2]
[382595424,1756675846049,-480.0,0.00017053,2]
[382595426,1756675846059,-653.57,0.00017053,2]
[382595428,1756675846069,-617.61,0.00017053,2]
[382595430,1756675846078,-480.0,0.00017053,2]
[382595432,1756675846088,-2279.9,0.00017053,2]
[382595434,1756675846098,-480.0,0.00017053,2]
[382595436,1756675846110,-480.0,0.00017053,2]
[382595438,1756675846120,-704.08,0.00017053,2]
[382595440,1756675846129,-774.5,0.00017053,2]
[382595441,1756675846139,-480.0,0.00017053,2]
[382595443,1756675846152,-480.0,0.00017053,2]
[382595446,1756675846161,-480.0,0.00017053,2]
[382595449,1756675846170,-480.0,0.00017053,2]
[382595452,1756675846180,-480.0,0.00017053,2]
[382595455,1756675846190,-480.0,0.00017053,2]
[382595458,1756675846199,-480.0,0.00017054,2]
[382595461,1756675846209,-480.0,0.00017054,2]
[382595464,1756675846219,-354.6879656,0.00017054,2]
[382595468,1756675846228,-480.0,0.00017054,2]
[382595472,1756675846238,-666.63,0.00017054,2]
[382595475,1756675846248,-480.0,0.00017054,2]
[382595479,1756675846258,-558.76,0.00017054,2]
[382595483,1756675846267,-480.0,0.00017054,2]
[382595487,1756675846276,-480.0,0.00017054,2]
[382595490,1756675846286,-922.16,0.00017054,2]
[382595492,1756675846295,-480.0,0.00017054,2]
[382595494,1756675846305,-480.0,0.00017054,2]
[382595495,1756675846316,-480.0,0.00017054,2]
[382595497,1756675846325,-480.0,0.00017054,2]
[382595499,1756675846336,-697.02,0.00017054,2]
[382595505,1756675846391,-880.22,0.00017054,2]
[382595507,1756675846400,-480.0,0.00017054,2]
[382595509,1756675846410,-787.46,0.00017054,2]
[382595511,1756675846419,-480.0,0.00017054,2]
[382595513,1756675846428,-772.07,0.00017054,2]
[382595515,1756675846437,-480.0,0.00017054,2]
[382595516,1756675846447,-480.0,0.00017054,2]
[382595518,1756675846456,-480.0,0.00017054,2]
[382595520,1756675846465,-710.36,0.00017054,2]
[382595522,1756675846476,-480.0,0.00017054,2]
[382595524,1756675846494,-722.24,0.00017054,2]
[382595526,1756675846504,-917.07,0.00017054,2]
[382595528,1756675846521,-480.0,0.00017054,2]
[382595530,1756675846533,-480.0,0.00017054,2]
[382595531,1756675846542,-866.78,0.00017054,2]
[382595533,1756675846551,-698.52,0.00017054,2]
[382595535,1756675846561,-698.03,0.00017054,2]
[382595537,1756675846571,-988.61,0.00017054,2]
[382595539,1756675846580,-480.0,0.00017054,2]
[382595541,1756675846590,-480.0,0.00017054,2]
[382595543,1756675846601,-480.0,0.00017054,2]
[382595545,1756675846611,-480.0,0.00017054,2]
[382595546,1756675846620,-762.2,0.00017054,2]
[382595548,1756675846632,-480.0,0.00017054,2]
[382595550,1756675846642,-1596.59,0.00017054,2]
[382595552,1756675846651,-1207.89,0.00017054,2]
[382595554,1756675846660,-733.38,0.00017054,2]
[382595556,1756675846670,-480.0,0.00017054,2]
[382595558,1756675846679,-480.0,0.00017054,2]
[382595560,1756675846688,-515.12,0.00017054,2]
[382595561,1756675846697,-923.88,0.00017054,2]
[382595563,1756675846708,-480.0,0.00017054,2]
[382595565,1756675846720,-530.77,0.00017054,2]
[382595567,1756675846729,-952.53,0.00017054,2]
[382595569,1756675846738,-480.0,0.00017054,2]
[382595571,1756675846748,-480.0,0.00017054,2]
[382595573,1756675846758,-480.0,0.00017054,2]
[382595574,1756675846767,-480.0,0.00017054,2]
[382595576,1756675846777,-622.12,0.00017054,2]
[382595578,1756675846787,-935.42,0.00017054,2]
[382595580,1756675846796,-753.19,0.00017054,2]
[382595582,1756675846806,-635.95,0.00017054,2]
[382595584,1756675846819,-480.0,0.00017054,2]
[382595586,1756675846828,-480.0,0.00017055,2]
[382595588,1756675846838,-480.0,0.00017055,2]
[382595590,1756675846848,-480.0,0.00017055,2]
[382595592,1756675846859,-799.68,0.00017055,2]
[382595593,1756675846868,-480.0,0.00017055,2]
[382595595,1756675846878,-480.0,0.00017055,2]
[382595597,1756675846888,-480.0,0.00017055,2]
[382595599,1756675846897,-508.32,0.00017055,2]
[382595601,1756675846906,-480.0,0.00017055,2]
[382595603,1756675846915,-480.0,0.00017055,2]
[382595605,1756675846924,-480.0,0.00017055,2]
[382595607,1756675846934,-169.68656562,0.00017055,2]
[382595608,1756675846944,-480.0,0.00017055,2]
[382595609,1756675846956,-480.0,0.00017055,2]
[382595611,1756675846965,-480.0,0.00017055,2]
[382595613,1756675846973,-480.0,0.00017055,2]
[382595614,1756675846983,-480.0,0.00017055,2]
[382595616,1756675846992,-480.0,0.00017055,2]
[382595617,1756675847001,-581.54088737,0.00017055,2]
[382595620,1756675847010,-480.0,0.00017055,2]
[382595622,1756675847020,-929.6,0.00017055,2]
[382595624,1756675847029,-880.96,0.00017055,2]
[382595625,1756675847039,-480.0,0.00017055,2]
[382595627,1756675847048,-480.0,0.00017055,2]
[382595628,1756675847057,-480.0,0.00017055,2]
[382595630,1756675847066,-480.0,0.00017055,2]
[382595631,1756675847076,-480.0,0.00017055,2]
[382595633,1756675847085,-480.0,0.00017055,2]
[382595634,1756675847094,-480.0,0.00017055,2]
[382595636,1756675847103,-913.56,0.00017055,2]
[382595637,1756675847112,-891.2,0.00017055,2]
[382595639,1756675847122,-480.0,0.00017055,2]
[382595640,1756675847130,-837.04,0.00017055,2]
[382595642,1756675847139,-480.0,0.00017055,2]
[382595643,1756675847149,-480.0,0.00017055,2]
[382595645,1756675847158,-480.0,0.00017055,2]
[382595647,1756675847168,-480.0,0.00017055,2]
[382595648,1756675847178,-480.0,0.00017055,2]
[382595650,1756675847188,-480.0,0.00017055,2]
[382595651,1756675847197,-323.38408743,0.00017055,2]
[382595653,1756675847207,-578.12,0.00017055,2]
[382595655,1756675847216,-480.0,0.00017055,2]
[382595656,1756675847225,-238.47418321,0.00017055,2]
[382595658,1756675847235,-480.0,0.00017055,2]
[382595660,1756675847245,-480.0,0.00017055,2]
[382595661,1756675847255,-540.78,0.00017055,2]
[382595662,1756675847264,-480.0,0.00017055,2]
[382595664,1756675847274,-488.09,0.00017055,2]
[382595665,1756675847284,-480.0,0.00017055,2]
[382595667,1756675847294,-480.0,0.00017055,2]
[382595669,1756675847303,-480.0,0.00017055,2]
[382595670,1756675847313,-480.0,0.00017055,2]
[382595672,1756675847322,-618.13,0.00017055,2]
[382595674,1756675847332,-717.91,0.00017055,2]
[382595675,1756675847342,-480.0,0.00017055,2]
[382595677,1756675847351,-188.55317972,0.00017055,2]
[382595679,1756675847360,-485.34,0.00017055,2]
[382595680,1756675847370,-480.0,0.00017055,2]
[382595682,1756675847379,-707.45,0.00017055,2]
[382595684,1756675847388,-480.0,0.00017055,2]
[382595685,1756675847397,-480.0,0.00017055,2]
[382595687,1756675847407,-744.85,0.00017055,2]
[382595689,1756675847417,-987.14,0.00017055,2]
[382595690,1756675847427,-480.0,0.00017055,2]
[382595692,1756675847437,-500.0,0.00017055,2]
[382595693,1756675847445,-590.57,0.00017055,2]
[382595695,1756675847455,-480.0,0.00017055,2]
[382595697,1756675847464,-480.0,0.00017055,2]
[382595698,1756675847473,-480.0,0.00017055,2]
[382595700,1756675847483,-480.0,0.00017055,2]
[382595702,1756675847491,-603.25,0.00017055,2]
[382595703,1756675847501,-480.0,0.00017055,2]
[382595705,1756675847511,-549.86,0.00017055,2]
[382595706,1756675847520,-480.0,0.00017055,2]
[382595708,1756675847529,-480.0,0.00017055,2]
[382595710,1756675847543,-480.0,0.00017055,2]
[382595711,1756675847552,-480.0,0.00017055,2]
[382595713,1756675847561,-480.0,0.00017055,2]
[382595715,1756675847570,-480.0,0.00017055,2]
[382595716,1756675847579,-480.0,0.00017055,2]
[382595718,1756675847589,-773.62,0.00017055,2]
[382595720,1756675847598,-480.0,0.00017055,2]
[382595721,1756675847607,-480.0,0.00017055,2]
[382595723,1756675847616,-480.0,0.00017055,2]
[382595725,1756675847626,-480.0,0.00017055,2]
[382595726,1756675847635,-480.0,0.00017055,2]
[382595728,1756675847644,-480.0,0.00017055,2]
[382595729,1756675847653,-480.0,0.00017055,2]
[382595731,1756675847663,-480.0,0.00017055,2]
[382595733,1756675847671,-500.0,0.00017073,2]
[382595734,1756675847681,-500.0,0.00017073,2]
[382595736,1756675847691,-500.0,0.00017073,2]
[382595738,1756675847700,-500.0,0.00017073,2]
[382595739,1756675847709,-194.94272003,0.00017073,2]
[382595741,1756675847719,-500.0,0.00017073,2]
[382595742,1756675847728,-500.0,0.00017073,2]
[382595744,1756675847737,-500.0,0.00017073,2]
[382595746,1756675847747,-500.0,0.00017073,2]
[382595747,1756675847756,-480.0,0.00017098,2]
[382595749,1756675847766,-480.0,0.00017098,2]
[382595751,1756675847775,-480.0,0.00017098,2]
[382595752,1756675847784,-480.0,0.00017098,2]
[382595754,1756675847794,-480.0,0.00017098,2]
[382595755,1756675847803,-480.0,0.00017098,2]
[382595757,1756675847812,-731.65,0.00017098,2]
[382595759,1756675847822,-728.1,0.00017098,2]
[382595760,1756675847831,-913.54,0.00017098,2]
[382595762,1756675847840,-536.58,0.00017098,2]
[382595764,1756675847850,-773.23,0.00017098,2]
[382595765,1756675847859,-480.0,0.00017098,2]
[382595767,1756675847870,-480.0,0.00017098,2]
[382595768,1756675847880,-480.0,0.00017098,2]
[382595770,1756675847889,-480.0,0.00017098,2]
[382595772,1756675847901,-480.0,0.00017098,2]
[382595773,1756675847910,-480.0,0.00017098,2]
[382595775,1756675847919,-480.0,0.00017098,2]
[382595777,1756675847929,-480.0,0.00017098,2]
[382595778,1756675847938,-480.0,0.00017098,2]
[382595780,1756675847951,-480.0,0.00017098,2]
[382595782,1756675847961,-160.0,0.00017127,2]
[382595783,1756675847970,-11364.23969824,0.00017132,2]
[382595785,1756675847981,-530.02580203,0.00017141,2]
[382595787,1756675847991,-160.0,0.00017141,2]
[382595788,1756675848000,-160.0,0.00017141,2]
[382595790,1756675848009,-160.0,0.00017141,2]
[382595792,1756675848021,-425.75173308,0.00017141,2]
[382595793,1756675848031,-160.0,0.00017141,2]
[382595795,1756675848040,-160.0,0.00017141,2]
[382595796,1756675848050,-417.15472785,0.00017141,2]
[382595798,1756675848059,-160.0,0.00017141,2]
[382595800,1756675848068,-217.4012883,0.00017141,2]
[382595801,1756675848077,-845.95363151,0.00017141,2]
[382595803,1756675848086,-160.0,0.00017141,2]
[382595804,1756675848096,-232.78794292,0.00017141,2]
[382595806,1756675848105,-160.0,0.00017148,2]
[382595808,1756675848114,-500.0,0.00017153,2]
[382595809,1756675848123,-294.96386925,0.00017159,2]
[382595811,1756675848133,-500.0,0.00017178,2]
[382595813,1756675848142,-500.0,0.00017178,2]
[382595814,1756675848151,-172.91525719,0.00017257,2]
[382595816,1756675848161,-213.6364315,0.00017317,2]
[382595818,1756675848170,-500.0,0.00017317,2]
[382595819,1756675848180,-500.0,0.00017317,2]
[382595821,1756675848189,-500.0,0.00017317,2]
[382595822,1756675848199,-500.0,0.00017317,2]
[382595824,1756675848209,-608.87160144,0.00017317,2]
[382595826,1756675848219,-500.0,0.00017317,2]
[382595827,1756675848228,-500.0,0.00017317,2]
[382595829,1756675848238,-1000.0,0.00017321,2]
[382595831,1756675848248,-1000.0,0.00017321,2]
[382595832,1756675848258,-524.36340573,0.00017321,2]
[382595834,1756675848267,-1000.0,0.00017321,2]
[382595836,1756675848278,-1000.0,0.00017321,2]
[382595837,1756675848287,-1000.0,0.00017321,2]
[382595839,1756675848296,-480.0,0.00017325,2]
[382595840,1756675848306,-480.0,0.00017325,2]
[382595842,1756675848316,-722.63,0.00017326,2]
[382595844,1756675848326,-480.0,0.00017326,2]
[382595846,1756675848336,-480.0,0.00017326,2]
[382595847,1756675848347,-480.0,0.00017326,2]
[382595849,1756675848358,-480.0,0.00017326,2]
[382595851,1756675848368,-480.0,0.00017326,2]
[382595852,1756675848378,-1344.28,0.00017326,2]
[382595854,1756675848388,-480.0,0.00017326,2]
[382595855,1756675848397,-480.0,0.00017326,2]
[382595857,1756675848407,-721.82,0.00017326,2]
[382595859,1756675848416,-1160.18,0.00017326,2]
[382595860,1756675848426,-480.0,0.00017326,2]
[382595862,1756675848436,-480.0,0.00017326,2]
[382595864,1756675848446,-480.0,0.00017326,2]
[382595865,1756675848455,-1069.26,0.00017326,2]
[382595867,1756675848465,-495.79,0.00017326,2]
[382595869,1756675848475,-480.0,0.00017326,2]
[382595870,1756675848484,-480.0,0.00017326,2]
[382595872,1756675848493,-480.0,0.00017326,2]
[382595874,1756675848503,-677.17,0.00017326,2]
[382595875,1756675848512,-668.84,0.00017326,2]
[382595877,1756675848522,-500.0,0.00017326,2]
[382595879,1756675848531,-614.86,0.00017327,2]
[382595880,1756675848541,-480.0,0.00017327,2]
[382595882,1756675848551,-480.0,0.00017327,2]
[382595884,1756675848561,-480.0,0.00017327,2]
[382595885,1756675848571,-480.0,0.00017327,2]
[382595887,1756675848582,-480.0,0.00017327,2]
[382595889,1756675848591,-480.0,0.00017327,2]
[382595890,1756675848601,-480.0,0.00017327,2]
[382595892,1756675848610,-480.0,0.00017327,2]
[382595894,1756675848620,-480.0,0.00017327,2]
[382595895,1756675848629,-203.21954916,0.00017327,2]
[382595897,1756675848639,-480.0,0.00017327,2]
[382595898,1756675848649,-480.0,0.00017327,2]
[382595900,1756675848658,-480.0,0.00017327,2]
[382595902,1756675848668,-942.49,0.00017327,2]
[382595903,1756675848678,-549.24,0.00017327,2]
[382595905,1756675848687,-480.0,0.00017327,2]
[382595907,1756675848697,-499.82,0.00017327,2]
[382595909,1756675848707,-646.4,0.00017327,2]
[382595910,1756675848716,-663.12,0.00017327,2]
[382595912,1756675848726,-533.25,0.00017327,2]
[382595913,1756675848735,-480.0,0.00017327,2]
[382595915,1756675848745,-480.0,0.00017327,2]
[382595917,1756675848756,-480.0,0.00017327,2]
[382595918,1756675848765,-480.0,0.00017327,2]
[382595920,1756675848775,-480.0,0.00017327,2]
[382595922,1756675848785,-854.56,0.00017327,2]
[382595924,1756675848800,-508.2,0.00017327,2]
[382595925,1756675848810,-480.0,0.00017327,2]
[382595927,1756675848820,-665.21,0.00017327,2]
[382595929,1756675848829,-480.0,0.00017327,2]
[382595931,1756675848841,-316.50233895,0.00017327,2]
[382595932,1756675848850,-480.0,0.00017327,2]
[382595934,1756675848859,-480.0,0.00017327,2]
[382595936,1756675848869,-480.0,0.00017327,2]
[382595937,1756675848879,-575.28,0.00017327,2]
[382595939,1756675848888,-480.0,0.00017327,2]
[382595941,1756675848898,-480.0,0.00017327,2]
[382595942,1756675848907,-572.52,0.00017327,2]
[382595944,1756675848916,-480.0,0.00017327,2]
[382595946,1756675848926,-480.0,0.00017327,2]
[382595947,1756675848935,-480.0,0.00017327,2]
[382595949,1756675848946,-300.99974728,0.00017327,2]
[382595951,1756675848958,-480.0,0.00017327,2]
[382595953,1756675848968,-617.6,0.00017327,2]
[382595954,1756675848977,-637.0,0.00017327,2]
[382595956,1756675848987,-712.38,0.00017327,2]
[382595958,1756675848997,-480.0,0.00017327,2]
[382595959,1756675849007,-4115.77,0.00017327,2]
[382595961,1756675849016,-480.0,0.00017327,2]
[382595963,1756675849026,-614.41,0.00017327,2]
[382595964,1756675849036,-3097.79,0.00017327,2]
[382595966,1756675849046,-582.88,0.00017327,2]
[382595968,1756675849055,-480.0,0.00017327,2]
[382595969,1756675849065,-480.0,0.00017327,2]
[382595971,1756675849075,-480.0,0.00017327,2]
[382595973,1756675849084,-480.0,0.00017327,2]
[382595974,1756675849093,-810.06,0.00017327,2]
[382595976,1756675849104,-655.66,0.00017327,2]
[382595978,1756675849113,-1499.22,0.00017327,2]
[382595979,1756675849122,-625.4,0.00017327,2]
[382595981,1756675849132,-480.0,0.00017327,2]
[382595983,1756675849143,-697.17,0.00017327,2]
[382595985,1756675849152,-480.0,0.00017327,2]
[382595986,1756675849162,-480.0,0.00017327,2]
[382595988,1756675849172,-662.67,0.00017327,2]
[382595990,1756675849181,-990.81,0.00017327,2]
[382595991,1756675849191,-2638.18,0.00017327,2]
[382595993,1756675849201,-586.77,0.00017327,2]
[382595995,1756675849211,-480.0,0.00017327,2]
[382595996,1756675849220,-480.0,0.00017327,2]
[382595998,1756675849230,-480.0,0.00017327,2]
[382596000,1756675849239,-480.0,0.00017327,2]
[382596001,1756675849249,-3490.32,0.00017327,2]
[382596003,1756675849259,-1188.84,0.00017327,2]
[382596005,1756675849269,-487.97,0.00017327,2]
[382596006,1756675849279,-480.0,0.00017327,2]
[382596008,1756675849290,-480.0,0.00017327,2]
[382596010,1756675849299,-653.57,0.00017327,2]
[382596011,1756675849309,-617.61,0.00017327,2]
[382596013,1756675849320,-480.0,0.00017327,2]
[382596015,1756675849330,-2279.9,0.00017327,2]
[382596016,1756675849340,-480.0,0.00017327,2]
[382596018,1756675849350,-480.0,0.00017327,2]
[382596020,1756675849360,-704.08,0.00017327,2]
[382596021,1756675849370,-774.5,0.00017327,2]
[382596023,1756675849380,-480.0,0.00017327,2]
[382596025,1756675849390,-480.0,0.00017327,2]
[382596027,1756675849400,-480.0,0.00017327,2]
[382596028,1756675849410,-480.0,0.00017327,2]
[382596030,1756675849420,-480.0,0.00017327,2]
[382596031,1756675849430,-480.0,0.00017327,2]
[382596033,1756675849440,-480.0,0.00017328,2]
[382596035,1756675849452,-480.0,0.00017328,2]
[382596037,1756675849463,-480.0,0.00017328,2]
[382596039,1756675849472,-666.63,0.00017328,2]
[382596041,1756675849482,-380.23913147,0.00017328,2]
[382596043,1756675849492,-558.76,0.00017328,2]
[382596045,1756675849501,-480.0,0.00017328,2]
[382596047,1756675849511,-480.0,0.00017328,2]
[382596049,1756675849520,-922.16,0.00017328,2]
[382596051,1756675849530,-480.0,0.00017328,2]